fUST/lending_fUST_20241110
["ID","MTS","AMOUNT","RATE_DAILY","PERIOD"]
[341759080,1731215445159,-204.69,0.000316,31]
[341759081,1731215445169,-204.69,0.000316,31]
[341759082,1731215445178,-204.69,0.000316,31]
[341759083,1731215445187,-204.69,0.000316,31]
[341759084,1731215445196,-204.69,0.000316,31]
[341759085,1731215445205,-204.69,0.000316,31]
[341759086,1731215445214,-204.69,0.000316,31]
[341759087,1731215445224,-204.69,0.000316,31]
[341759088,1731215445233,-204.69,0.000316,31]
[341759089,1731215445242,-204.69,0.000316,31]
[341759090,1731215445251,-204.69,0.000316,31]
[341759091,1731215445260,-204.69,0.000316,31]
[341759092,1731215445270,-204.69,0.000316,31]
[341759093,1731215445281,-204.69,0.000316,31]
[341759094,1731215445293,-204.69,0.000316,31]
[341759095,1731215445302,-204.69,0.000316,31]
[341759096,1731215445311,-204.69,0.000316,31]
[341759097,1731215445321,-204.69,0.000316,31]
[341759098,1731215445331,-204.69,0.000316,31]
[341759099,1731215445341,-204.69,0.000316,31]
[341759100,1731215445352,-204.69,0.000316,31]
[341759101,1731215445361,-204.69,0.000316,31]
[341759102,1731215445373,-500.0,0.000316,36]
[341759103,1731215445383,-1007.0444975,0.00031626,2]
[341759104,1731215445393,-5742.11985367,0.0003165,36]
[341759105,1731215445402,-5000.0,0.0003165,31]
[341759106,1731215445411,-5000.0,0.0003165,36]
[341759107,1731215445424,-5000.0,0.0003165,34]
[341759108,1731215445434,-5000.0,0.0003165,35]
[341759109,1731215445444,-155.976661,0.00031665,7]
[341759110,1731215445454,-151.0,0.00031665,7]
[341759111,1731215445465,-151.0,0.00031665,7]
[341759114,1731215445475,-151.0,0.00031665,7]
[341759116,1731215445484,-151.0,0.00031665,7]
[341759118,1731215445494,-151.0,0.00031665,7]
[341759120,1731215445503,-151.0,0.00031665,7]
[341759121,1731215445515,-151.0,0.00031665,7]
[341759122,1731215445524,-151.0,0.00031665,7]
[341759123,1731215445534,-151.0,0.00031665,7]
[341759124,1731215445544,-151.0,0.00031665,7]
[341759125,1731215445553,-267.414841,0.00031665,7]
[341759126,1731215445563,-152.532072,0.00031665,7]
[341759127,1731215445573,-151.0,0.00031665,7]
[341759128,1731215445583,-151.0,0.00031665,7]
[341759129,1731215445593,-151.0,0.00031665,7]
[341759130,1731215445603,-151.0,0.00031665,7]
[341759131,1731215445613,-151.0,0.00031665,7]
[341759132,1731215445623,-151.0,0.00031665,7]
[341759133,1731215445633,-151.0,0.00031665,7]
[341759134,1731215445642,-151.0,0.00031665,7]
[341759135,1731215445651,-151.0,0.00031665,7]
[341759137,1731215445661,-151.0,0.00031665,7]
[341759138,1731215445670,-151.0,0.00031665,7]
[341759140,1731215445680,-280.742421,0.00031665,7]
[341759141,1731215445690,-562.968525,0.00031665,7]
[341759142,1731215445700,-503.44774057,0.00031673,5]
[341759143,1731215445711,-500.0,0.00031673,5]
[341759144,1731215445721,-500.83954123,0.00031673,5]
[341759145,1731215445731,-500.0,0.00031673,5]
[341759146,1731215445740,-500.0,0.00031673,5]
[341759147,1731215445749,-500.0,0.00031673,5]
[341759148,1731215445759,-500.0,0.0003168,2]
[341759149,1731215445768,-2157.91471395,0.00031682,2]
[341759151,1731215445778,-712.2,0.00031682,2]
[341759153,1731215445787,-150.89420809,0.00031683,7]
[341759154,1731215445797,-153.28147,0.00031683,7]
[341759155,1731215445808,-154.44984779,0.00031683,10]
[341759156,1731215445817,-172.02996759,0.00031683,10]
[341759157,1731215445826,-152.999655,0.00031683,10]
[341759159,1731215445835,-157.76593013,0.00031683,10]
[341759160,1731215445844,-500.0,0.00031683,10]
[341759162,1731215445854,-210.24145977,0.00031683,10]
[341759164,1731215445864,-165.62092866,0.00031683,10]
[341759166,1731215445875,-164.00815458,0.00031683,10]
[341759168,1731215445885,-500.0,0.00031683,10]
[341759169,1731215445895,-151.0,0.00031685,7]
[341759170,1731215445904,-152.089447,0.00031685,7]
[341759172,1731215445915,-155.246859,0.00031685,7]
[341759174,1731215445925,-152.883535,0.00031685,7]
[341759176,1731215445935,-151.611924,0.00031685,7]
[341759177,1731215445944,-155.701028,0.00031685,7]
[341759178,1731215445954,-151.0,0.00031685,3]
[341759179,1731215445966,-151.0,0.00031685,3]
[341759180,1731215445976,-256.5164543,0.00031689,2]
[341759181,1731215445986,-286.45918348,0.00031689,2]
[341759182,1731215445996,-500.0,0.00031689,2]
[341759183,1731215446005,-500.0,0.00031689,2]
[341759184,1731215446014,-500.0,0.00031689,2]
[341759186,1731215446024,-473.77772423,0.00031689,2]
[341759187,1731215446034,-128.01041547,0.00031689,2]
[341759188,1731215446048,-188.21018172,0.00031689,2]
[341759189,1731215446058,-500.0,0.00031689,2]
[341759190,1731215446068,-647.20888139,0.00031689,2]
[341759191,1731215446078,-500.0,0.00031689,2]
[341759192,1731215446088,-500.0,0.00031689,2]
[341759193,1731215446097,-500.0,0.00031689,2]
[341759194,1731215446108,-500.0,0.00031689,2]
[341759195,1731215446118,-166.58376635,0.00031689,2]
[341759196,1731215446131,-500.0,0.00031689,2]
[341759198,1731215446141,-179.561518,0.00031689,2]
[341759199,1731215446151,-222.953,0.00031689,2]
[341759200,1731215446160,-203.697,0.00031689,2]
[341759201,1731215446169,-529.0,0.00031689,2]
[341759202,1731215446179,-1130.0,0.00031689,2]
[341759203,1731215446188,-456.413663,0.00031689,7]
[341759204,1731215446198,-456.413663,0.00031689,7]
[341759205,1731215446207,-456.413663,0.00031689,7]
[341759206,1731215446217,-456.413663,0.00031689,7]
[341759207,1731215446227,-456.413663,0.00031689,7]
[341759208,1731215446237,-456.413663,0.00031689,7]
[341759209,1731215446247,-456.413663,0.00031689,7]
[341759210,1731215446257,-456.413663,0.00031689,7]
[341759211,1731215446266,-456.413663,0.00031689,7]
[341759212,1731215446276,-456.413663,0.00031689,7]
[341759213,1731215446285,-456.413663,0.00031689,7]
[341759214,1731215446293,-456.413663,0.00031689,7]
[341759215,1731215446303,-456.413663,0.00031689,7]
[341759216,1731215446312,-456.413663,0.00031689,7]
[341759217,1731215446324,-456.413663,0.00031689,7]
[341759218,1731215446335,-456.413663,0.00031689,7]
[341759219,1731215446345,-456.413663,0.00031689,7]
[341759220,1731215446434,-456.413663,0.00031689,7]
[341759221,1731215446457,-456.413663,0.00031689,7]
[341759222,1731215446467,-456.413671,0.00031689,7]
[341759223,1731215446477,-471.18795768,0.00031689,28]
[341759224,1731215446488,-151.0,0.00031689,7]
[341759225,1731215446497,-151.0,0.00031689,7]
[341759226,1731215446507,-151.0,0.00031689,7]
[341759227,1731215446517,-151.0,0.00031689,7]
[341759228,1731215446527,-151.0,0.00031689,7]
[341759229,1731215446537,-151.0,0.00031689,7]
[341759230,1731215446547,-151.0,0.00031689,7]
[341759231,1731215446556,-151.0,0.00031689,7]
[341759232,1731215446566,-151.0,0.00031689,7]
[341759233,1731215446575,-151.0,0.00031689,7]
[341759234,1731215446585,-151.0,0.00031689,7]
[341759235,1731215446594,-151.0,0.00031689,7]
[341759236,1731215446604,-151.0,0.00031689,7]
[341759237,1731215446613,-151.0,0.00031689,7]
[341759238,1731215446623,-158.654508,0.00031689,7]
[341759239,1731215446633,-151.0,0.00031689,7]
[341759240,1731215446643,-151.0,0.00031689,7]
[341759241,1731215446652,-151.0,0.00031689,7]
[341759242,1731215446662,-154.847956,0.00031689,7]
[341759244,1731215446672,-151.0,0.00031689,7]
[341759245,1731215446682,-151.0,0.00031689,7]
[341759246,1731215446692,-164.261892,0.00031689,7]
[341759247,1731215446702,-151.0,0.00031689,7]
[341759248,1731215446712,-163.317588,0.00031689,7]
[341759249,1731215446722,-151.0,0.00031689,7]
[341759250,1731215446732,-151.0,0.00031689,7]
[341759251,1731215446742,-191.783028,0.00031689,7]
[341759252,1731215446752,-191.241673,0.00031689,7]
[341759253,1731215446763,-237.184122,0.00031689,7]
[341759254,1731215446773,-237.184122,0.00031689,7]
[341759255,1731215446784,-237.184122,0.00031689,7]
[341759256,1731215446793,-237.184122,0.00031689,7]
[341759257,1731215446804,-237.184122,0.00031689,7]
[341759258,1731215446814,-237.184122,0.00031689,7]
[341759259,1731215446824,-237.184122,0.00031689,7]
[341759260,1731215446834,-237.184122,0.00031689,7]
[341759261,1731215446844,-237.184122,0.00031689,7]
[341759262,1731215446854,-237.184122,0.00031689,7]
[341759263,1731215446865,-237.184122,0.00031689,7]
[341759264,1731215446878,-237.184122,0.00031689,7]
[341759265,1731215446888,-237.184122,0.00031689,7]
[341759266,1731215446898,-237.184122,0.00031689,7]
[341759267,1731215446909,-237.184122,0.00031689,7]
[341759268,1731215446919,-237.184122,0.00031689,7]
[341759269,1731215446930,-237.184122,0.00031689,7]
[341759270,1731215446940,-237.184122,0.00031689,7]
[341759271,1731215446950,-237.184122,0.00031689,7]
[341759272,1731215446961,-237.18411376,0.00031689,7]
[341759273,1731215446971,-151.637364,0.00031689,7]
[341759274,1731215446980,-192.05050557,0.00031689,2]
[341759275,1731215446990,-588.63213399,0.00031689,2]
[341759276,1731215447000,-1000.0,0.0003169,30]
[341759277,1731215447009,-482.89558712,0.0003169,7]
[341759278,1731215447018,-482.89558712,0.0003169,7]
[341759279,1731215447028,-1317798.83119568,0.0003169,10]
[341759280,1731215447092,-706.17,0.00029,10]
[341759281,1731215447102,-500.0,0.00030136,2]
[341759282,1731215447111,-500.0,0.0003041,2]
[341759283,1731215447123,-500.0,0.00030684,2]
[341759284,1731215447133,-500.0,0.00030958,2]
[341759285,1731215447142,-500.0,0.00031232,2]
[341759286,1731215447152,-500.0,0.00031582,2]
[341759287,1731215447162,-1415.09446,0.000316,7]
[341759288,1731215447173,-500.0,0.00031673,2]
[341759289,1731215447182,-256769.70729351,0.0003169,10]
[341759290,1731215447194,-5181.59594518,0.0003169,10]
[341759291,1731215447205,-7887.9,0.0003169,10]
[341759302,1731215540830,162.771644,0.00013973,2]
[341759357,1731216312224,162.749476,0.00013973,2]
[341759358,1731216339733,607.63888889,0.00020844,2]
[341759378,1731216485643,5000.0,0.00031721,120]
[341759398,1731216526844,68836.4854647,0.00020377,2]
[341759431,1731216632292,-509.19,0.00021,3]
[341759433,1731216632301,-151.99773526,0.00021689,2]
[341759435,1731216632311,-300.0,0.00021999,2]
[341759437,1731216632320,-14742.3345011,0.00022,30]
[341759439,1731216632331,-1106.72433,0.00022,30]
[341759473,1731216638421,-4805.33949001,0.00022,30]
[341759475,1731216638431,-162.749476,0.00023435,2]
[341759477,1731216638440,-5871.25954682,0.00025,2]
[341759479,1731216638450,-607.63888889,0.0002543,2]
[341759481,1731216638459,-383.13774011,0.00026849,2]
[341759646,1731216640275,-3627.51566876,0.00026849,2]
[341759648,1731216640284,-174.161444,0.00027265,2]
[341759650,1731216640295,-181.5006074,0.00027865,2]
[341759652,1731216640313,-152.60894456,0.00029,120]
[341759654,1731216640322,-4378.0,0.00029077,30]
[341759656,1731216640331,-169.005,0.0002996,10]
[341759658,1731216640341,-178.15286777,0.00030036,2]
[341759660,1731216640350,-489.91,0.00030126,3]
[341759662,1731216640359,-244.95,0.00030126,3]
[341759665,1731216640368,-734.88,0.00030126,3]
[341759667,1731216640377,-2183.78,0.00030126,10]
[341759669,1731216640386,-273.28769476,0.00030126,7]
[341759671,1731216640396,-390.39278209,0.00030135,2]
[341759673,1731216640406,-322.95633657,0.00030135,2]
[341759675,1731216640419,-502.25156983,0.00030135,2]
[341759677,1731216640428,-504.7911007,0.00030135,2]
[341759679,1731216640438,-501.05267497,0.00030135,2]
[341759681,1731216640448,-500.0,0.00030135,2]
[341759683,1731216640457,-500.0,0.00030135,2]
[341759685,1731216640466,-500.0,0.00030135,2]
[341759687,1731216640476,-500.0,0.00030135,2]
[341759689,1731216640485,-500.78016918,0.00030135,2]
[341759691,1731216640495,-500.00000001,0.00030135,2]
[341759693,1731216640504,-500.0,0.00030135,2]
[341759695,1731216640514,-199.14467195,0.00030135,2]
[341759697,1731216640524,-430.38997379,0.00030135,2]
[341759699,1731216640534,-251.47810617,0.00030135,2]
[341759701,1731216640543,-535.47358485,0.00030136,2]
[341759703,1731216640553,-501.88189777,0.00030136,2]
[341759705,1731216640562,-500.0,0.00030136,2]
[341759707,1731216640571,-508.47334144,0.00030136,2]
[341759709,1731216640580,-503.3195008,0.00030136,2]
[341759711,1731216640589,-500.0,0.00030136,2]
[341759713,1731216640599,-507.79648618,0.00030136,2]
[341759715,1731216640609,-503.19376115,0.00030136,2]
[341759717,1731216640619,-509.93883195,0.00030136,2]
[341759720,1731216640628,-500.0,0.00030136,2]
[341759721,1731216640637,-500.0,0.00030136,2]
[341759724,1731216640647,-500.0,0.00030136,2]
[341759726,1731216640656,-505.67016315,0.00030136,2]
[341759728,1731216640670,-500.0,0.00030136,2]
[341759730,1731216640679,-500.0,0.00030136,2]
[341759731,1731216640688,-649.72046246,0.00030136,2]
[341759734,1731216640698,-502.50734843,0.00030136,2]
[341759736,1731216640707,-500.0,0.00030136,2]
[341759738,1731216640716,-500.0,0.00030136,2]
[341759740,1731216640725,-500.0,0.00030136,2]
[341759741,1731216640738,-500.0,0.00030136,2]
[341759743,1731216640748,-500.0,0.00030136,2]
[341759746,1731216640757,-507.58483009,0.00030136,2]
[341759747,1731216640767,-500.0,0.00030136,2]
[341759749,1731216640779,-500.0,0.00030136,2]
[341759752,1731216640788,-500.0,0.00030136,2]
[341759754,1731216640797,-500.0,0.00030136,2]
[341759755,1731216640811,-308.99934941,0.00030136,2]
[341759757,1731216640821,-500.0,0.00030136,2]
[341759760,1731216640830,-321.90576743,0.00030136,2]
[341759761,1731216640839,-500.0,0.00030136,2]
[341759764,1731216640848,-500.0,0.00030136,2]
[341759766,1731216640858,-500.0,0.00030136,2]
[341759767,1731216640867,-500.0,0.00030136,2]
[341759770,1731216640876,-500.0,0.00030136,2]
[341759772,1731216640886,-505.9719757,0.00030136,2]
[341759773,1731216640895,-518.72645147,0.00030136,2]
[341759775,1731216640905,-250.0,0.00030136,2]
[341759777,1731216640918,-500.0,0.00030136,2]
[341759780,1731216640932,-521.72894475,0.00030136,2]
[341759782,1731216640943,-592.52911166,0.00030136,2]
[341759784,1731216640954,-500.0,0.00030136,2]
[341759786,1731216640965,-500.0,0.00030136,2]
[341759788,1731216640976,-500.0,0.00030136,2]
[341759790,1731216640987,-417.42615058,0.00030136,2]
[341759792,1731216640998,-500.0,0.00030136,2]
[341759794,1731216641217,-516.75084509,0.00030136,2]
[341759795,1731216641228,-500.0,0.00030136,2]
[341759797,1731216641238,-510.07394193,0.00030136,2]
[341759799,1731216641249,-527.59144512,0.00030136,2]
[341759801,1731216641260,-300.0,0.00030136,2]
[341759803,1731216641270,-514.9228471,0.00030136,2]
[341759805,1731216641280,-509.87230151,0.00030136,2]
[341759807,1731216641291,-500.0,0.00030136,2]
[341759809,1731216641302,-500.0,0.00030136,2]
[341759811,1731216641312,-500.0,0.00030136,2]
[341759813,1731216641322,-500.0,0.00030136,2]
[341759815,1731216641333,-500.0,0.00030136,2]
[341759817,1731216641343,-500.0,0.00030136,2]
[341759819,1731216641355,-500.0,0.00030136,2]
[341759821,1731216641365,-1223.42,0.00030136,2]
[341759823,1731216641376,-1223.42,0.00030136,2]
[341759825,1731216641386,-500.0,0.00030136,2]
[341759827,1731216641397,-500.0,0.00030136,2]
[341759829,1731216641407,-500.0,0.00030136,2]
[341759831,1731216641418,-500.0,0.00030136,2]
[341759833,1731216641429,-506.51763638,0.00030136,2]
[341759835,1731216641440,-500.0,0.00030136,2]
[341759837,1731216641451,-500.0,0.00030136,2]
[341759839,1731216641462,-500.0,0.00030136,2]
[341759841,1731216641472,-514.75025173,0.00030136,2]
[341759843,1731216641483,-189.11337286,0.00030136,2]
[341759845,1731216641494,-500.0,0.00030136,2]
[341759847,1731216641506,-500.0,0.00030136,2]
[341759849,1731216641516,-500.0,0.00030136,2]
[341759851,1731216641526,-500.0,0.00030136,2]
[341759853,1731216641536,-500.0,0.00030136,2]
[341759855,1731216641547,-500.0,0.00030136,2]
[341759857,1731216641557,-500.0,0.00030136,2]
[341759859,1731216641566,-500.0,0.00030136,2]
[341759861,1731216641577,-514.42789034,0.00030136,2]
[341759863,1731216641586,-500.0,0.00030136,2]
[341759865,1731216641597,-500.0,0.00030136,2]
[341759867,1731216641607,-500.0,0.00030136,2]
[341759869,1731216641617,-500.0,0.00030136,2]
[341759871,1731216641628,-500.0,0.00030136,2]
[341759873,1731216641638,-500.0,0.00030136,2]
[341759889,1731216641790,-500.0,0.00030136,2]
[341759891,1731216641802,-500.0,0.00030136,2]
[341759893,1731216641812,-500.0,0.00030136,2]
[341759895,1731216641821,-500.0,0.00030136,2]
[341759897,1731216641832,-500.0,0.00030136,2]
[341759899,1731216641841,-263.32246418,0.00030136,2]
[341759901,1731216641850,-500.0,0.00030136,2]
[341759903,1731216641860,-515.01725626,0.00030136,2]
[341759905,1731216641870,-574.53291783,0.00030136,2]
[341759907,1731216641880,-500.0,0.00030136,2]
[341759909,1731216641889,-500.0,0.00030136,2]
[341759911,1731216641898,-500.0,0.00030136,2]
[341759913,1731216641908,-500.0,0.00030136,2]
[341759915,1731216641917,-500.0,0.00030136,2]
[341759917,1731216641926,-500.0,0.00030136,2]
[341759919,1731216641935,-500.0,0.00030136,2]
[341759921,1731216641944,-500.0,0.00030136,2]
[341759923,1731216641954,-500.0,0.00030136,2]
[341759925,1731216641963,-500.0,0.00030136,2]
[341759927,1731216641973,-500.0,0.00030136,2]
[341759929,1731216641983,-500.0,0.00030136,2]
[341759931,1731216641992,-500.0,0.00030136,2]
[341759933,1731216642001,-500.0,0.00030136,2]
[341759935,1731216642011,-500.0,0.00030136,2]
[341759937,1731216642020,-500.0,0.00030136,2]
[341759939,1731216642030,-500.0,0.00030136,2]
[341759941,1731216642040,-500.0,0.00030136,2]
[341759943,1731216642050,-500.0,0.00030136,2]
[341759945,1731216642060,-500.0,0.00030136,2]
[341759947,1731216642069,-500.0,0.00030136,2]
[341759949,1731216642079,-500.0,0.00030136,2]
[341759951,1731216642088,-494.77500703,0.00030136,2]
[341759963,1731216642201,-5.22499297,0.00030136,2]
[341759965,1731216642211,-572.48985408,0.00030136,2]
[341759967,1731216642220,-500.0,0.00030136,2]
[341759969,1731216642229,-500.0,0.00030136,2]
[341759971,1731216642238,-500.0,0.00030136,2]
[341759973,1731216642247,-500.0,0.00030136,2]
[341759975,1731216642256,-600.43878906,0.00030136,2]
[341759977,1731216642265,-500.0,0.00030136,2]
[341759979,1731216642274,-503.265666,0.00030136,2]
[341759981,1731216642283,-500.0,0.00030136,2]
[341759983,1731216642293,-500.0,0.00030136,2]
[341759985,1731216642302,-500.0,0.00030136,2]
[341759987,1731216642311,-534.65132803,0.00030136,2]
[341759989,1731216642320,-500.0,0.00030136,2]
[341759991,1731216642330,-500.0,0.00030136,2]
[341759993,1731216642340,-500.0,0.00030136,2]
[341759995,1731216642350,-500.0,0.00030136,2]
[341759997,1731216642359,-535.51903949,0.00030136,2]
[341759998,1731216642368,-500.0,0.00030136,2]
[341760001,1731216642378,-500.0,0.00030136,2]
[341760002,1731216642388,-500.0,0.00030136,2]
[341760005,1731216642397,-500.0,0.00030136,2]
[341760007,1731216642406,-500.0,0.00030136,2]
[341760009,1731216642418,-500.0,0.00030136,2]
[341760010,1731216642427,-500.0,0.00030136,2]
[341760012,1731216642436,-500.0,0.00030136,2]
[341760014,1731216642445,-500.0,0.00030136,2]
[341760016,1731216642455,-500.0,0.00030136,2]
[341760018,1731216642464,-500.94025367,0.00030136,2]
[341760020,1731216642473,-500.0,0.00030136,2]
[341760022,1731216642482,-200.0,0.00030136,2]
[341760024,1731216642491,-500.0,0.00030136,2]
[341760026,1731216642501,-500.0,0.00030136,2]
[341760029,1731216642510,-500.0,0.00030136,2]
[341760030,1731216642519,-500.0,0.00030136,2]
[341760032,1731216642528,-509.11958304,0.00030136,2]
[341760035,1731216642537,-500.0,0.00030136,2]
[341760037,1731216642547,-500.0,0.00030136,2]
[341760039,1731216642556,-500.0,0.00030136,2]
[341760041,1731216642565,-500.0,0.00030136,2]
[341760042,1731216642573,-505.18009586,0.00030136,2]
[341760044,1731216642582,-500.0,0.00030136,2]
[341760047,1731216642592,-500.0,0.00030136,2]
[341760048,1731216642601,-298.49061519,0.00030136,2]
[341760050,1731216642610,-505.66860195,0.00030136,2]
[341760053,1731216642619,-500.0,0.00030136,2]
[341760054,1731216642629,-538.69746352,0.00030136,2]
[341760056,1731216642639,-335.60267093,0.00030136,2]
[341760059,1731216642650,-569.49962382,0.00030136,2]
[341760060,1731216642660,-513.16616186,0.00030136,2]
[341760062,1731216642671,-500.0,0.00030136,2]
[341760065,1731216642681,-500.0,0.00030136,2]
[341760067,1731216642690,-500.0,0.00030136,2]
[341760069,1731216642699,-500.0,0.00030136,2]
[341760071,1731216642708,-521.74223218,0.00030136,2]
[341760073,1731216642718,-464.76162965,0.00030136,2]
[341760075,1731216642727,-500.0,0.00030136,2]
[341760078,1731216642737,-500.0,0.00030136,2]
[341760081,1731216642748,-3885.07,0.00030136,2]
[341760084,1731216642757,-500.0,0.00030136,2]
[341760087,1731216642767,-500.0,0.00030136,2]
[341760089,1731216642776,-500.0,0.00030136,2]
[341760091,1731216642786,-500.0,0.00030136,2]
[341760093,1731216642796,-500.0,0.00030136,2]
[341760095,1731216642805,-500.0,0.00030136,2]
[341760097,1731216642814,-524.46231481,0.00030136,2]
[341760099,1731216642824,-500.0,0.00030136,2]
[341760101,1731216642833,-500.0,0.00030136,2]
[341760103,1731216642842,-500.0,0.00030136,2]
[341760105,1731216642851,-500.0,0.00030136,2]
[341760107,1731216642859,-500.0,0.00030136,2]
[341760109,1731216642868,-500.0,0.00030136,2]
[341760111,1731216642877,-511.02635095,0.00030136,2]
[341760113,1731216642887,-500.88286344,0.00030136,2]
[341760115,1731216642896,-500.0,0.00030136,2]
[341760118,1731216642905,-521.38674628,0.00030136,2]
[341760120,1731216642915,-500.0,0.00030136,2]
[341760122,1731216642924,-500.0,0.00030136,2]
[341760124,1731216642933,-1342.13,0.00030136,2]
[341760126,1731216642942,-623.0376356,0.00030136,2]
[341760128,1731216642952,-500.0,0.00030136,2]
[341760131,1731216642961,-500.0,0.00030136,2]
[341760134,1731216642970,-500.0,0.00030136,2]
[341760136,1731216642979,-500.0,0.00030136,2]
[341760137,1731216642988,-500.0,0.00030136,2]
[341760139,1731216642998,-500.0,0.00030136,2]
[341760141,1731216643007,-500.0,0.00030136,2]
[341760142,1731216643016,-500.0,0.00030136,2]
[341760143,1731216643026,-500.0,0.00030136,2]
[341760144,1731216643035,-500.0,0.00030136,2]
[341760145,1731216643044,-500.0,0.00030136,2]
[341760146,1731216643053,-500.0,0.00030136,2]
[341760147,1731216643062,-500.0,0.00030136,2]
[341760148,1731216643072,-791.15,0.00030136,2]
[341760149,1731216643081,-500.0,0.00030136,2]
[341760150,1731216643090,-500.0,0.00030136,2]
[341760151,1731216643099,-500.0,0.00030136,2]
[341760152,1731216643109,-500.0,0.00030136,2]
[341760153,1731216643118,-500.0,0.00030136,2]
[341760154,1731216643128,-500.68426409,0.00030136,2]
[341760155,1731216643138,-500.0,0.00030136,2]
[341760156,1731216643148,-500.0,0.00030136,2]
[341760157,1731216643157,-504.85557894,0.00030136,2]
[341760158,1731216643168,-508.77746945,0.00030136,2]
[341760159,1731216643177,-500.0,0.00030136,2]
[341760161,1731216643187,-511.27885708,0.00030136,2]
[341760162,1731216643196,-500.0,0.00030136,2]
[341760164,1731216643205,-500.0,0.00030136,2]
[341760166,1731216643214,-518.41657955,0.00030136,2]
[341760168,1731216643223,-519.95286552,0.00030136,2]
[341760170,1731216643233,-500.0,0.00030136,2]
[341760172,1731216643243,-500.0,0.00030136,2]
[341760174,1731216643253,-500.0,0.00030136,2]
[341760176,1731216643261,-500.0,0.00030136,2]
[341760178,1731216643271,-532.47362957,0.00030136,2]
[341760180,1731216643280,-500.0,0.00030136,2]
[341760182,1731216643291,-500.0,0.00030136,2]
[341760184,1731216643300,-500.0,0.00030136,2]
[341760186,1731216643309,-500.0,0.00030136,2]
[341760188,1731216643319,-500.0,0.00030136,2]
[341760190,1731216643329,-500.0,0.00030136,2]
[341760192,1731216643339,-512.07208766,0.00030136,2]
[341760194,1731216643348,-500.0,0.00030136,2]
[341760196,1731216643358,-500.0,0.00030136,2]
[341760198,1731216643367,-639.57674529,0.00030136,2]
[341760200,1731216643377,-500.0,0.00030136,2]
[341760202,1731216643386,-500.0,0.00030136,2]
[341760204,1731216643396,-500.0,0.00030136,2]
[341760207,1731216643406,-500.0,0.00030136,2]
[341760208,1731216643417,-500.0,0.00030136,2]
[341760210,1731216643427,-503.80829893,0.00030136,2]
[341760212,1731216643437,-500.0,0.00030136,2]
[341760214,1731216643446,-500.0,0.00030136,2]
[341760216,1731216643456,-500.0,0.00030136,2]
[341760218,1731216643466,-500.0,0.00030136,2]
[341760220,1731216643475,-500.0,0.00030136,2]
[341760222,1731216643484,-500.0,0.00030136,2]
[341760232,1731216643566,-593.40256753,0.00030136,2]
[341760234,1731216643576,-500.0,0.00030136,2]
[341760236,1731216643586,-640.27075283,0.00030136,2]
[341760238,1731216643595,-500.0,0.00030136,2]
[341760240,1731216643604,-500.0,0.00030136,2]
[341760242,1731216643614,-520.61376904,0.00030136,2]
[341760244,1731216643624,-500.0,0.00030136,2]
[341760246,1731216643634,-500.0,0.00030136,2]
[341760248,1731216643643,-335.50506043,0.00030136,2]
[341760250,1731216643652,-543.16949853,0.00030136,2]